fUST/lending_fUST_20250329
["ID","MTS","AMOUNT","RATE_DAILY","PERIOD"]
[356784514,1743178060073,-500.0,0.00030136,10]
[356784515,1743178060098,-500.0,0.00030136,10]
[356784516,1743178060121,-500.0,0.00030136,10]
[356784517,1743178060142,-500.0,0.00030136,10]
[356784518,1743178060164,-500.0,0.00030136,10]
[356784519,1743178060190,-1057.2,0.00030136,10]
[356784520,1743178060212,-1176.58,0.00030136,10]
[356784521,1743178060235,-1118.55,0.00030136,10]
[356784522,1743178060258,-1034.28,0.00030136,10]
[356784523,1743178060282,-620.81,0.00030136,10]
[356784524,1743178060305,-500.0,0.00030136,10]
[356784525,1743178060326,-500.0,0.00030136,10]
[356784526,1743178060347,-521.8776413,0.00030136,10]
[356784527,1743178060370,-559.27,0.00030136,10]
[356784528,1743178060394,-500.0,0.00030136,10]
[356784529,1743178060417,-500.0,0.00030136,10]
[356784530,1743178060440,-500.0,0.00030136,10]
[356784531,1743178060462,-500.0,0.00030136,10]
[356784532,1743178060484,-500.0,0.00030136,10]
[356784533,1743178060506,-2779.38,0.00030136,10]
[356784534,1743178060530,-500.0,0.00030136,10]
[356784535,1743178060551,-638.16081979,0.00030136,10]
[356784536,1743178060572,-500.0,0.00030136,10]
[356784537,1743178060593,-520.55,0.00030136,10]
[356784538,1743178060614,-500.0,0.00030136,10]
[356784539,1743178060635,-642.5255386,0.00030136,10]
[356784540,1743178060657,-500.0,0.00030136,10]
[356784541,1743178060678,-723.97,0.00030136,10]
[356784542,1743178060699,-1083.96,0.00030136,10]
[356784543,1743178060721,-555.27,0.00030136,10]
[356784544,1743178060743,-713.41,0.00030136,10]
[356784545,1743178060763,-160.05220346,0.00030136,10]
[356784546,1743178060786,-1197.62,0.00030136,10]
[356784547,1743178060807,-500.0,0.00030136,10]
[356784548,1743178060830,-500.0,0.00030136,10]
[356784549,1743178060850,-500.0,0.00030136,7]
[356784550,1743178060872,-500.0,0.00030136,10]
[356784551,1743178060894,-500.0,0.00030136,10]
[356784552,1743178060915,-500.0,0.00030136,10]
[356784553,1743178060935,-500.0,0.00030136,10]
[356784554,1743178060956,-1285.62,0.00030136,10]
[356784555,1743178060982,-500.0,0.00030136,10]
[356784556,1743178061156,-268.88826788,0.00030136,10]
[356784557,1743178061180,-671.92,0.00030136,10]
[356784558,1743178061203,-502.95,0.00030136,10]
[356784559,1743178061227,-500.0,0.00030136,10]
[356784560,1743178061248,-500.0,0.00030136,10]
[356784561,1743178061271,-500.0,0.00030136,10]
[356784562,1743178061293,-500.0,0.00030136,10]
[356784563,1743178061316,-500.0,0.00030136,10]
[356784564,1743178061338,-500.0,0.00030136,10]
[356784565,1743178061361,-736.22,0.00030136,10]
[356784566,1743178061383,-500.0,0.00030136,10]
[356784567,1743178061408,-4586.94,0.00030136,10]
[356784568,1743178061430,-368.37780563,0.00030136,10]
[356784569,1743178061452,-1380.75,0.00030136,10]
[356784570,1743178061474,-500.0,0.00030136,10]
[356784571,1743178061496,-500.0,0.00030136,10]
[356784572,1743178061518,-500.0,0.00030136,10]
[356784573,1743178061550,-500.0,0.00030136,10]
[356784574,1743178061573,-500.0,0.00030136,10]
[356784575,1743178061596,-500.0,0.00030136,10]
[356784576,1743178061617,-4471.87,0.00030136,10]
[356784577,1743178061640,-500.0,0.00030136,10]
[356784578,1743178061661,-500.0,0.00030136,10]
[356784579,1743178061682,-635.86444044,0.00030136,10]
[356784580,1743178061704,-528.53339766,0.00030136,10]
[356784581,1743178061726,-853.52,0.00030136,10]
[356784582,1743178061747,-500.0,0.00030136,10]
[356784583,1743178061769,-500.0,0.00030136,10]
[356784584,1743178061792,-500.0,0.00030136,10]
[356784585,1743178061814,-13435.2,0.00030136,10]
[356784586,1743178061836,-513.04827038,0.00030136,10]
[356784587,1743178061858,-500.0,0.00030136,10]
[356784588,1743178061880,-500.0,0.00030136,10]
[356784589,1743178061901,-500.0,0.00030136,10]
[356784590,1743178061922,-500.0,0.00030136,10]
[356784591,1743178061944,-605.42,0.00030136,10]
[356784592,1743178061965,-500.0,0.00030136,10]
[356784593,1743178061990,-500.0,0.00030136,10]
[356784594,1743178062012,-500.0,0.00030136,10]
[356784595,1743178062035,-500.0,0.00030136,10]
[356784596,1743178062057,-531.14562429,0.00030136,10]
[356784597,1743178062079,-1335.96,0.00030136,10]
[356784598,1743178062105,-438.18314783,0.00030136,10]
[356784599,1743178062128,-506.25495077,0.00030136,10]
[356784600,1743178062151,-1436.34,0.00030136,10]
[356784601,1743178062177,-4000.06,0.00030136,10]
[356784602,1743178062200,-4708.2,0.00030136,10]
[356784603,1743178062225,-730.63,0.00030136,10]
[356784604,1743178062247,-500.0,0.00030136,10]
[356784605,1743178062270,-599.1,0.00030136,7]
[356784606,1743178062293,-500.0,0.00030136,10]
[356784607,1743178062315,-500.0,0.00030136,10]
[356784608,1743178062337,-963.05,0.00030136,10]
[356784609,1743178062360,-500.0,0.00030136,10]
[356784610,1743178062382,-500.0,0.00030136,10]
[356784611,1743178062406,-30042.8,0.00030136,10]
[356784612,1743178062432,-500.0,0.00030136,10]
[356784613,1743178062455,-1022.32,0.00030136,10]
[356784614,1743178062478,-500.0,0.00030136,10]
[356784615,1743178062500,-1092.79,0.00030136,10]
[356784616,1743178062522,-500.0,0.00030136,10]
[356784617,1743178062544,-500.0,0.00030136,10]
[356784618,1743178062565,-6807.47,0.00030136,10]
[356784619,1743178062587,-1333.47,0.00030136,10]
[356784620,1743178062608,-2435.25,0.00030136,10]
[356784621,1743178062629,-500.0,0.00030136,10]
[356784622,1743178062650,-551.61945404,0.00030136,10]
[356784623,1743178062671,-500.0,0.00030136,10]
[356784624,1743178062694,-500.0,0.00030136,10]
[356784625,1743178062715,-607.69,0.00030136,10]
[356784626,1743178062737,-500.0,0.00030136,10]
[356784627,1743178062759,-5149.18,0.00030136,10]
[356784628,1743178062781,-500.0,0.00030136,10]
[356784629,1743178062803,-870.87,0.00030136,10]
[356784630,1743178062825,-500.0,0.00030136,10]
[356784631,1743178062848,-502.59,0.00030136,10]
[356784632,1743178062870,-500.0,0.00030136,10]
[356784633,1743178062891,-500.0,0.00030136,10]
[356784634,1743178062913,-864.59,0.00030136,10]
[356784635,1743178062936,-5148.91,0.00030136,10]
[356784636,1743178062960,-500.0,0.00030136,10]
[356784637,1743178062982,-500.0,0.00030136,10]
[356784638,1743178063005,-1460.69,0.00030136,10]
[356784639,1743178063028,-506.11197502,0.00030136,10]
[356784640,1743178063051,-500.0,0.00030136,10]
[356784641,1743178063073,-1584.34,0.00030136,10]
[356784642,1743178063100,-2060.91,0.00030136,10]
[356784643,1743178063126,-500.0,0.00030136,10]
[356784644,1743178063151,-29535.01,0.00030136,10]
[356784645,1743178063175,-1003.7,0.00030136,10]
[356784646,1743178063200,-500.0,0.00030136,10]
[356784647,1743178063225,-12698.94,0.00030136,10]
[356784648,1743178063248,-2036.71,0.00030136,10]
[356784649,1743178063273,-2413.48,0.00030136,10]
[356784650,1743178063296,-1245.21,0.00030136,10]
[356784651,1743178063317,-996.17,0.00030136,10]
[356784652,1743178063339,-3572.34,0.00030136,10]
[356784653,1743178063362,-1383.64,0.00030136,10]
[356784654,1743178063384,-2066.37,0.00030136,10]
[356784655,1743178063406,-500.0,0.00030136,10]
[356784656,1743178063428,-1939.25,0.00030136,10]
[356784657,1743178063451,-500.0,0.00030136,10]
[356784658,1743178063472,-500.0,0.00030136,10]
[356784659,1743178063493,-2335.24,0.00030136,10]
[356784660,1743178063515,-5073.56,0.00030136,10]
[356784661,1743178063537,-573.06755257,0.00030136,10]
[356784662,1743178063559,-349.53076945,0.00030136,10]
[356784663,1743178063582,-3760.32,0.00030136,10]
[356784664,1743178063720,-500.0,0.00030136,10]
[356784665,1743178063768,-500.0,0.00030136,10]
[356784666,1743178063794,-8507.74,0.00030136,10]
[356784667,1743178063817,-502.74874153,0.00030136,10]
[356784668,1743178063840,-500.0,0.00030136,10]
[356784669,1743178063863,-500.0,0.00030136,10]
[356784670,1743178063887,-3679.34,0.00030136,10]
[356784671,1743178063909,-500.0,0.00030136,10]
[356784672,1743178063931,-500.0,0.00030136,10]
[356784673,1743178063953,-2122.96,0.00030136,10]
[356784674,1743178063974,-500.0,0.00030136,10]
[356784675,1743178063996,-500.0,0.00030136,10]
[356784676,1743178064018,-811.05,0.00030136,10]
[356784677,1743178064042,-578.82,0.00030136,10]
[356784678,1743178064065,-500.0,0.00030136,10]
[356784679,1743178064090,-1555.62,0.00030136,10]
[356784680,1743178064115,-1012.79,0.00030136,10]
[356784681,1743178064138,-465.28304938,0.00030136,10]
[356784682,1743178064161,-500.0,0.00030136,10]
[356784683,1743178064186,-15217.25,0.00030136,10]
[356784684,1743178064209,-500.0,0.00030136,10]
[356784685,1743178064232,-3872.81,0.00030136,10]
[356784686,1743178064255,-500.0,0.00030136,10]
[356784687,1743178064279,-500.0,0.00030136,10]
[356784688,1743178064302,-27974.37,0.00030136,10]
[356784689,1743178064325,-911.5,0.00030136,10]
[356784690,1743178064347,-850.77,0.00030136,10]
[356784691,1743178064370,-1603.71,0.00030136,10]
[356784692,1743178064392,-540.12,0.00030136,10]
[356784693,1743178064415,-500.0,0.00030136,10]
[356784694,1743178064439,-500.0,0.00030136,10]
[356784695,1743178064462,-500.0,0.00030136,10]
[356784696,1743178064485,-504.88038495,0.00030136,10]
[356784697,1743178064508,-500.0,0.00030136,10]
[356784698,1743178064533,-500.0,0.00030136,10]
[356784699,1743178064556,-3283.96,0.00030136,10]
[356784700,1743178064578,-500.0,0.00030136,10]
[356784701,1743178064602,-17230.33,0.00030136,10]
[356784702,1743178064626,-1100.67,0.00030136,10]
[356784703,1743178064651,-500.0,0.00030136,10]
[356784704,1743178064673,-500.0,0.00030136,10]
[356784705,1743178064697,-2312.35,0.00030136,10]
[356784706,1743178064720,-603.0,0.00030136,10]
[356784707,1743178064743,-500.0,0.00030136,10]
[356784708,1743178064766,-500.0,0.00030136,10]
[356784709,1743178064789,-281.32154572,0.00030136,10]
[356784710,1743178064813,-1056.53,0.00030136,10]
[356784711,1743178064836,-500.0,0.00030136,10]
[356784712,1743178064861,-526.25524683,0.00030136,10]
[356784713,1743178064884,-602.30000001,0.00030136,10]
[356784714,1743178064907,-3241.76,0.00030136,10]
[356784715,1743178064930,-500.0,0.00030136,10]
[356784716,1743178064953,-500.0,0.00030136,10]
[356784717,1743178064977,-885.69,0.00030136,10]
[356784718,1743178065002,-500.0,0.00030136,10]
[356784719,1743178065027,-1332.75,0.00030136,10]
[356784720,1743178065051,-538.19,0.00030136,10]
[356784721,1743178065075,-1019.77,0.00030136,10]
[356784722,1743178065102,-520.86872541,0.00030136,10]
[356784723,1743178065125,-460.68883037,0.00030136,10]
[356784724,1743178065150,-9845.67,0.00030136,10]
[356784725,1743178065173,-500.0,0.00030136,10]
[356784726,1743178065199,-500.0,0.00030136,10]
[356784727,1743178065224,-500.0,0.00030136,10]
[356784728,1743178065247,-500.0,0.00030136,7]
[356784729,1743178065271,-500.0,0.00030136,10]
[356784730,1743178065294,-1159.31,0.00030136,10]
[356784731,1743178065318,-585.65,0.00030136,10]
[356784732,1743178065341,-500.0,0.00030136,10]
[356784733,1743178065363,-566.95765724,0.00030136,10]
[356784734,1743178065386,-2016.27,0.00030136,10]
[356784735,1743178065409,-500.0,0.00030136,10]
[356784736,1743178065432,-500.0,0.00030136,10]
[356784737,1743178065454,-500.0,0.00030136,10]
[356784738,1743178065476,-781.09,0.00030136,10]
[356784739,1743178065499,-8311.67,0.00030136,10]
[356784740,1743178065522,-500.0,0.00030136,10]
[356784741,1743178065544,-1918.22,0.00030136,10]
[356784742,1743178065566,-500.0,0.00030136,10]
[356784743,1743178065589,-500.0,0.00030136,10]
[356784744,1743178065612,-3841.71,0.00030136,10]
[356784745,1743178065634,-500.0,0.00030136,10]
[356784746,1743178065656,-503.77916292,0.00030136,10]
[356784747,1743178065678,-500.0,0.00030136,10]
[356784748,1743178065701,-3004.85,0.00030136,10]
[356784749,1743178065723,-500.0,0.00030136,10]
[356784750,1743178065745,-547.38,0.00030136,10]
[356784751,1743178065767,-7240.24,0.00030136,10]
[356784752,1743178065790,-569.15,0.00030136,10]
[356784753,1743178065811,-500.0,0.00030136,10]
[356784754,1743178065834,-828.13,0.00030136,10]
[356784755,1743178065858,-500.0,0.00030136,10]
[356784756,1743178065879,-656.02,0.00030136,10]
[356784757,1743178065902,-500.0,0.00030136,10]
[356784758,1743178065924,-500.0,0.00030136,10]
[356784759,1743178065946,-500.0,0.00030136,10]
[356784760,1743178065968,-1533.13,0.00030136,10]
[356784761,1743178065990,-500.0,0.00030136,10]
[356784762,1743178066013,-500.0,0.00030136,10]
[356784763,1743178066038,-911.85,0.00030136,10]
[356784764,1743178066065,-627.01,0.00030136,10]
[356784765,1743178066090,-6940.59,0.00030136,10]
[356784766,1743178066120,-3910.27,0.00030136,10]
[356784767,1743178066145,-500.0,0.00030136,10]
[356784768,1743178066168,-8256.26,0.00030136,10]
[356784769,1743178066337,-1817.55,0.00030136,10]
[356784770,1743178066360,-500.0,0.00030136,10]
[356784771,1743178066384,-160.0,0.00030136,10]
[356784772,1743178066408,-1826.7,0.00030136,10]
[356784773,1743178066431,-500.0,0.00030136,10]
[356784774,1743178066455,-7106.12,0.00030136,10]
[356784775,1743178066479,-1637.09,0.00030136,10]
[356784776,1743178066502,-2122.04,0.00030136,10]
[356784777,1743178066526,-10447.85,0.00030136,10]
[356784778,1743178066549,-504.02,0.00030136,10]
[356784779,1743178066572,-549.43,0.00030136,10]
[356784780,1743178066595,-500.0,0.00030136,10]
[356784781,1743178066626,-605.69,0.00030136,10]
[356784782,1743178066650,-500.0,0.00030136,10]
[356784783,1743178066674,-3205.75,0.00030136,10]
[356784784,1743178066696,-500.0,0.00030136,10]
[356784785,1743178066720,-500.0,0.00030136,10]
[356784786,1743178066744,-500.0,0.00030136,10]
[356784787,1743178066768,-561.09,0.00030136,10]
[356784788,1743178066792,-500.0,0.00030136,10]
[356784789,1743178066815,-1579.03,0.00030136,10]
[356784790,1743178066838,-653.23,0.00030136,10]
[356784791,1743178066862,-500.0,0.00030136,10]
[356784792,1743178066886,-500.0,0.00030136,10]
[356784793,1743178066908,-500.0,0.00030136,10]
[356784794,1743178066932,-500.0,0.00030136,10]
[356784795,1743178066954,-621.2,0.00030136,10]
[356784796,1743178066977,-500.0,0.00030136,10]
[356784797,1743178067000,-500.0,0.00030136,10]
[356784798,1743178067023,-905.59,0.00030136,10]
[356784799,1743178067046,-151.0,0.00030136,7]
[356784800,1743178067069,-500.0,0.00030136,10]
[356784801,1743178067092,-1771.73,0.00030136,10]
[356784802,1743178067119,-151.0,0.00030136,7]
[356784803,1743178067143,-151.0,0.00030136,7]
[356784804,1743178067165,-500.0,0.00030136,10]
[356784805,1743178067192,-151.0,0.00030136,7]
[356784806,1743178067219,-151.0,0.00030136,7]
[356784807,1743178067243,-151.0,0.00030136,7]
[356784808,1743178067269,-3431.69,0.00030136,10]
[356784809,1743178067294,-500.0,0.00030136,10]
[356784810,1743178067317,-500.0,0.00030136,10]
[356784811,1743178067341,-778.07,0.00030136,10]
[356784812,1743178067364,-151.0,0.00030136,7]
[356784813,1743178067389,-151.0,0.00030136,7]
[356784814,1743178067412,-500.0,0.00030136,10]
[356784815,1743178067435,-151.0,0.00030136,7]
[356784816,1743178067458,-151.0,0.00030136,7]
[356784817,1743178067480,-249.018994,0.00030136,7]
[356784818,1743178067503,-151.0,0.00030136,7]
[356784819,1743178067525,-828.3,0.00030136,10]
[356784820,1743178067547,-500.0,0.00030136,10]
[356784821,1743178067570,-500.0,0.00030136,10]
[356784822,1743178067594,-500.0,0.00030136,10]
[356784823,1743178067618,-500.0,0.00030136,10]
[356784824,1743178067641,-500.0,0.00030136,10]
[356784825,1743178067665,-500.0,0.00030136,10]
[356784826,1743178067689,-500.0,0.00030136,10]
[356784827,1743178067713,-5585.7,0.00030136,10]
[356784828,1743178067735,-8802.55,0.00030136,10]
[356784829,1743178067759,-1141.63,0.00030136,10]
[356784830,1743178067781,-500.0,0.00030136,10]
[356784831,1743178067804,-990.28,0.00030136,10]
[356784832,1743178067826,-656.16,0.00030136,10]
[356784833,1743178067849,-500.0,0.00030136,10]
[356784834,1743178067871,-500.0,0.00030136,10]
[356784835,1743178067893,-500.0,0.00030136,10]
[356784836,1743178067917,-498.22703872,0.00030136,10]
[356784837,1743178067940,-500.0,0.00030136,10]
[356784838,1743178067962,-500.0,0.00030136,10]
[356784839,1743178067985,-500.0,0.00030136,10]
[356784840,1743178068007,-2729.95,0.00030136,10]
[356784841,1743178068030,-500.0,0.00030136,10]
[356784842,1743178068054,-500.0,0.00030136,10]
[356784843,1743178068077,-500.0,0.00030136,10]
[356784844,1743178068103,-1466.97,0.00030136,10]
[356784845,1743178068127,-234.89456865,0.00030136,10]
[356784846,1743178068152,-500.0,0.00030136,10]
[356784847,1743178068177,-500.0,0.00030136,10]
[356784848,1743178068202,-1626.67,0.00030136,10]
[356784849,1743178068227,-500.0,0.00030136,10]
[356784850,1743178068253,-500.0,0.00030136,10]
[356784851,1743178068277,-500.0,0.00030136,10]
[356784852,1743178068301,-500.0,0.00030136,10]
[356784853,1743178068326,-1790.55,0.00030136,10]
[356784854,1743178068349,-986.22,0.00030136,10]
[356784855,1743178068374,-500.0,0.00030136,10]
[356784856,1743178068399,-258.022569,0.00030136,7]
[356784857,1743178068429,-258.022569,0.00030136,7]
[356784858,1743178068454,-258.022569,0.00030136,7]
[356784859,1743178068480,-258.022569,0.00030136,7]
[356784860,1743178068508,-258.022569,0.00030136,7]
[356784861,1743178068534,-258.022569,0.00030136,7]
[356784862,1743178068559,-258.022569,0.00030136,7]
[356784863,1743178068583,-258.022569,0.00030136,7]
[356784864,1743178068608,-258.022569,0.00030136,7]
[356784865,1743178068634,-9783.88,0.00030136,10]
[356784866,1743178068658,-258.022569,0.00030136,7]
[356784867,1743178068682,-258.022569,0.00030136,7]
[356784868,1743178068707,-258.022565,0.00030136,7]
[356784869,1743178068881,-6525.6,0.00030136,10]
[356784870,1743178068908,-1027.83,0.00030136,10]
[356784871,1743178068933,-500.0,0.00030136,10]
[356784872,1743178068960,-500.0,0.00030173,5]
[356784873,1743178068984,-500.0,0.00030173,5]
[356784874,1743178069008,-500.0,0.00030173,5]
[356784875,1743178069034,-500.0,0.00030173,5]
[356784876,1743178069058,-500.0,0.00030173,5]
[356784877,1743178069082,-500.0,0.00030173,5]
[356784878,1743178069111,-500.0,0.00030173,5]
[356784879,1743178069136,-500.0,0.00030173,5]
[356784880,1743178069160,-500.0,0.00030173,5]
[356784881,1743178069185,-500.0,0.00030173,5]
[356784882,1743178069209,-500.0,0.00030173,5]
[356784883,1743178069234,-500.0,0.00030173,5]
[356784884,1743178069259,-181.03608584,0.00030173,5]
[356784885,1743178069284,-500.0,0.00030173,5]
[356784886,1743178069308,-500.0,0.00030173,5]
[356784887,1743178069332,-500.0,0.00030173,5]
[356784888,1743178069356,-500.0,0.00030173,5]
[356784889,1743178069380,-500.0,0.00030173,5]
[356784890,1743178069405,-415.76641331,0.00030173,5]
[356784891,1743178069429,-500.0,0.00030173,5]
[356784892,1743178069452,-500.0,0.00030173,5]
[356784893,1743178069475,-500.0,0.00030173,2]
[356784894,1743178069499,-500.0,0.00030173,5]
[356784895,1743178069523,-500.0,0.00030173,5]
[356784896,1743178069557,-500.0,0.00030173,5]
[356784897,1743178069582,-500.0,0.00030173,5]
[356784898,1743178069606,-153.37434522,0.00030173,5]
[356784899,1743178069629,-500.0,0.00030173,5]
[356784900,1743178069653,-500.0,0.00030173,5]
[356784901,1743178069676,-500.0,0.00030173,5]
[356784902,1743178069699,-446.50569481,0.00030173,5]
[356784903,1743178069722,-418.56810427,0.000302,10]
[356784904,1743178069745,-835.12233967,0.000302,10]
[356784905,1743178069771,-435.30125821,0.0003021,9]
[356784906,1743178069796,-5000.0,0.00030397,2]
[356784907,1743178069819,-500.0,0.0003041,10]
[356784908,1743178069841,-500.0,0.0003041,10]
[356784909,1743178069864,-515.59486335,0.0003041,10]
[356784910,1743178069886,-500.0,0.0003041,10]
[356784911,1743178069909,-500.0,0.0003041,10]
[356784912,1743178069931,-165.99855124,0.0003041,10]
[356784913,1743178069953,-500.0,0.0003041,10]
[356784914,1743178069977,-567.7132721,0.0003041,10]
[356784915,1743178070002,-500.0,0.0003041,10]
[356784916,1743178070030,-500.0,0.0003041,10]
[356784917,1743178070057,-500.0,0.0003041,10]
[356784918,1743178070082,-500.0,0.0003041,10]
[356784919,1743178070112,-500.0,0.0003041,10]
[356784920,1743178070137,-500.0,0.0003041,10]
[356784921,1743178070160,-500.0,0.0003041,10]
[356784922,1743178070186,-555.09019421,0.0003041,10]
[356784923,1743178070211,-500.0,0.0003041,10]
[356784924,1743178070236,-500.0,0.0003041,10]
[356784925,1743178070259,-500.0,0.0003041,10]
[356784926,1743178070285,-500.0,0.0003041,10]
[356784927,1743178070309,-500.0,0.0003041,10]
[356784928,1743178070332,-500.0,0.0003041,10]
[356784929,1743178070354,-500.0,0.0003041,10]
[356784930,1743178070377,-470.54801209,0.0003041,10]
[356784931,1743178070400,-509.16925481,0.0003041,10]
[356784932,1743178070422,-526.9074895,0.0003041,10]
[356784933,1743178070447,-512.06189543,0.0003041,10]
[356784934,1743178070469,-500.0,0.0003041,10]
[356784935,1743178070492,-500.0,0.0003041,5]
[356784936,1743178070515,-500.0,0.0003041,10]
[356784937,1743178070538,-500.0,0.0003041,10]
[356784938,1743178070561,-500.0,0.0003041,10]
[356784939,1743178070584,-726.06,0.0003041,10]
[356784940,1743178070605,-524.53828989,0.0003041,10]
[356784941,1743178070627,-500.0,0.0003041,10]
[356784942,1743178070650,-500.0,0.0003041,10]
[356784943,1743178070672,-500.0,0.0003041,10]
[356784944,1743178070695,-500.0,0.0003041,10]
[356784945,1743178070718,-500.0,0.0003041,10]
[356784946,1743178070740,-500.0,0.0003041,10]
[356784947,1743178070763,-500.0,0.0003041,10]
[356784948,1743178070786,-500.0,0.0003041,10]
[356784949,1743178070808,-245.85611374,0.0003041,10]
[356784950,1743178070830,-500.0,0.0003041,10]
[356784951,1743178070853,-500.0,0.0003041,10]
[356784952,1743178070875,-500.0,0.0003041,10]
[356784953,1743178070897,-500.0,0.0003041,10]
[356784954,1743178070919,-500.0,0.0003041,10]
[356784955,1743178070941,-500.0,0.0003041,10]
[356784956,1743178070964,-500.0,0.0003041,10]
[356784957,1743178070986,-500.0,0.0003041,10]
[356784958,1743178071008,-574.49469985,0.0003041,10]
[356784959,1743178071030,-500.0,0.0003041,10]
[356784960,1743178071052,-500.0,0.0003041,10]
[356784961,1743178071073,-500.0,0.0003041,10]
[356784962,1743178071099,-500.0,0.0003041,10]
[356784963,1743178071121,-500.0,0.0003041,10]
[356784964,1743178071280,-500.0,0.0003041,10]
[356784965,1743178071308,-500.0,0.0003041,10]
[356784966,1743178071331,-500.0,0.0003041,10]
[356784967,1743178071354,-500.0,0.0003041,10]
[356784968,1743178071376,-500.0,0.0003041,10]
[356784969,1743178071399,-500.0,0.0003041,10]
[356784970,1743178071422,-500.0,0.0003041,10]
[356784971,1743178071445,-500.0,0.0003041,10]
[356784972,1743178071467,-500.0,0.0003041,10]
[356784973,1743178071488,-500.0,0.0003041,10]
[356784974,1743178071510,-506.68256236,0.0003041,10]
[356784975,1743178071534,-500.0,0.0003041,10]
[356784976,1743178071556,-500.0,0.0003041,10]
[356784977,1743178071578,-500.0,0.0003041,10]
[356784978,1743178071601,-500.0,0.0003041,10]
[356784979,1743178071623,-500.0,0.0003041,10]
[356784980,1743178071646,-500.0,0.0003041,10]
[356784981,1743178071669,-500.0,0.0003041,10]
[356784982,1743178071691,-540.20043967,0.0003041,10]
[356784983,1743178071713,-500.0,0.0003041,10]
[356784984,1743178071735,-500.0,0.0003041,10]
[356784985,1743178071757,-500.0,0.0003041,10]
[356784986,1743178071781,-500.0,0.0003041,10]
[356784987,1743178071803,-533.53,0.0003041,10]
[356784988,1743178071826,-500.0,0.0003041,10]
[356784989,1743178071849,-500.0,0.0003041,2]
[356784990,1743178071872,-500.0,0.0003041,10]
[356784991,1743178071894,-341.09698529,0.0003041,10]
[356784992,1743178071917,-500.0,0.0003041,10]
[356784993,1743178071940,-500.0,0.0003041,10]
[356784994,1743178071961,-346.43645983,0.0003041,10]
[356784995,1743178071984,-640.67901571,0.0003041,10]
[356784996,1743178072007,-500.0,0.0003041,10]
[356784997,1743178072031,-500.0,0.0003041,10]
[356784998,1743178072054,-550.62202961,0.0003041,10]
[356784999,1743178072077,-553.79742465,0.0003041,10]
[356785000,1743178072101,-500.0,0.0003041,10]
[356785001,1743178072124,-500.0,0.0003041,10]
[356785002,1743178072148,-500.0,0.0003041,10]
[356785003,1743178072170,-500.0,0.0003041,10]
[356785004,1743178072194,-500.0,0.0003041,10]
[356785005,1743178072218,-500.0,0.0003041,10]
[356785006,1743178072241,-500.0,0.0003041,10]
[356785007,1743178072263,-500.0,0.0003041,10]
[356785008,1743178072286,-500.0,0.0003041,10]
[356785009,1743178072308,-500.0,0.0003041,10]
[356785010,1743178072331,-500.0,0.0003041,10]
[356785011,1743178072354,-500.0,0.0003041,10]
[356785012,1743178072376,-500.0,0.0003041,10]
[356785013,1743178072399,-500.0,0.0003041,10]